[Event "*** SCC Grand Prix: Titled Tuesday Blitz"]
[Site "Chess.com"]
[Date "2020.08.11"]
[Round "3"]
[White "GlennTipton"]
[Black "mishanick"]
[Result "0-1"]
[WhiteElo "2453"]
[BlackElo "2990"]
[TimeControl "180+1"]
[EndTime "10:25:33 PDT"]
[Termination "mishanick won by resignation"]

1. e4 {[%clk 0:03:00]} 1... c5 {[%clk 0:02:58.5]} 2. Nc3 {[%clk 0:02:59.4]} 2...
d6 {[%clk 0:02:58.9]} 3. f4 {[%clk 0:02:59.7]} 3... g6 {[%clk 0:02:58.6]} 4. Nf3
{[%clk 0:03:00.4]} 4... Bg7 {[%clk 0:02:59.3]} 5. Bc4 {[%clk 0:03:01]} 5... e6
{[%clk 0:02:59]} 6. O-O {[%clk 0:03:01.7]} 6... Ne7 {[%clk 0:02:58.5]} 7. Qe1
{[%clk 0:03:02.4]} 7... O-O {[%clk 0:02:56.3]} 8. d3 {[%clk 0:03:02.8]} 8... d5
{[%clk 0:02:55.9]} 9. Bb3 {[%clk 0:03:03.5]} 9... Nbc6 {[%clk 0:02:54.7]} 10. f5
{[%clk 0:03:04]} 10... exf5 {[%clk 0:02:53.2]} 11. Nxd5 {[%clk 0:03:00.6]} 11...
fxe4 {[%clk 0:02:50.5]} 12. dxe4 {[%clk 0:02:56.7]} 12... Nxd5 {[%clk
0:02:49.9]} 13. Bxd5 {[%clk 0:02:55.5]} 13... Nb4 {[%clk 0:02:50]} 14. Bb3
{[%clk 0:02:38.7]} 14... Qb6 {[%clk 0:02:49.2]} 15. a3 {[%clk 0:02:14]} 15...
Nc6 {[%clk 0:02:24.5]} 16. Kh1 {[%clk 0:02:11.2]} 16... Be6 {[%clk 0:02:23.5]}
17. Qh4 {[%clk 0:01:59.1]} 17... Bxb3 {[%clk 0:02:19.9]} 18. cxb3 {[%clk
0:02:00]} 18... Qxb3 {[%clk 0:02:20.3]} 19. Bh6 {[%clk 0:01:56.2]} 19... f6
{[%clk 0:02:15.1]} 20. Rad1 {[%clk 0:01:44.1]} 20... Rad8 {[%clk 0:02:12.8]} 21.
Bxg7 {[%clk 0:01:37.6]} 21... Rxd1 {[%clk 0:02:11.3]} 0-1

[Event "*** SCC Grand Prix: Titled Tuesday Blitz"]
[Site "Chess.com"]
[Date "2020.08.11"]
[Round "3"]
[White "attack2mateU"]
[Black "IngOscarArdila"]
[Result "1-0"]
[WhiteElo "2722"]
[BlackElo "2204"]
[TimeControl "180+1"]
[EndTime "10:25:41 PDT"]
[Termination "attack2mateU won by resignation"]

1. e4 {[%clk 0:03:00.9]} 1... e5 {[%clk 0:02:59.5]} 2. Nf3 {[%clk 0:03:00.7]}
2... Nf6 {[%clk 0:02:58.9]} 3. Nxe5 {[%clk 0:03:00.5]} 3... d6 {[%clk 0:02:59]}
4. Nf3 {[%clk 0:03:00.1]} 4... Nxe4 {[%clk 0:02:59.5]} 5. Nc3 {[%clk 0:02:59.9]}
5... Nf6 {[%clk 0:02:59.6]} 6. d4 {[%clk 0:02:59.3]} 6... Be7 {[%clk 0:03:00.1]}
7. h3 {[%clk 0:02:59.2]} 7... Bf5 {[%clk 0:03:00.2]} 8. Nh4 {[%clk 0:02:41.6]}
8... Bd7 {[%clk 0:02:54.8]} 9. Bd3 {[%clk 0:02:40.7]} 9... O-O {[%clk
0:02:54.5]} 10. Be3 {[%clk 0:02:21.6]} 10... Re8 {[%clk 0:02:53.2]} 11. O-O
{[%clk 0:02:20.6]} 11... g6 {[%clk 0:02:51.4]} 12. Nf3 {[%clk 0:02:13.2]} 12...
Bf8 {[%clk 0:02:50.6]} 13. Qd2 {[%clk 0:02:10.5]} 13... Bg7 {[%clk 0:02:49.7]}
14. Rfe1 {[%clk 0:02:10.3]} 14... Nc6 {[%clk 0:02:49.4]} 15. a3 {[%clk
0:02:10.1]} 15... Ne7 {[%clk 0:02:48.4]} 16. Bg5 {[%clk 0:02:07.4]} 16... Bf5
{[%clk 0:02:46.7]} 17. Bxf5 {[%clk 0:01:40.3]} 17... Nxf5 {[%clk 0:02:46.3]} 18.
Nd5 {[%clk 0:01:13.9]} 18... Rxe1+ {[%clk 0:02:42.6]} 19. Rxe1 {[%clk
0:01:13.6]} 19... c6 {[%clk 0:02:42.6]} 20. Bxf6 {[%clk 0:01:13.7]} 20... Bxf6
{[%clk 0:02:42.4]} 21. Re8+ {[%clk 0:01:14.3]} 21... Qxe8 {[%clk 0:02:36.8]} 22.
Nxf6+ {[%clk 0:01:14.2]} 22... Kg7 {[%clk 0:02:37.1]} 23. Nxe8+ {[%clk
0:01:14.8]} 23... Rxe8 {[%clk 0:02:37.4]} 24. g4 {[%clk 0:01:14.2]} 24... Ne7
{[%clk 0:02:36.4]} 25. Qf4 {[%clk 0:01:13.7]} 25... Rd8 {[%clk 0:02:32.2]} 26.
Ng5 {[%clk 0:01:13.3]} 1-0

[Event "*** SCC Grand Prix: Titled Tuesday Blitz"]
[Site "Chess.com"]
[Date "2020.08.11"]
[Round "3"]
[White "timator"]
[Black "Oleksandr_Bortnyk"]
[Result "0-1"]
[WhiteElo "2695"]
[BlackElo "2988"]
[TimeControl "180+1"]
[EndTime "10:26:00 PDT"]
[Termination "Oleksandr_Bortnyk won by resignation"]

1. Nf3 {[%clk 0:02:45.8]} 1... d5 {[%clk 0:02:59.1]} 2. b3 {[%clk 0:02:45.3]}
2... Bf5 {[%clk 0:02:58.6]} 3. Bb2 {[%clk 0:02:45.2]} 3... e6 {[%clk 0:02:59.2]}
4. e3 {[%clk 0:02:43]} 4... h6 {[%clk 0:02:59.4]} 5. h3 {[%clk 0:02:43.3]} 5...
Nf6 {[%clk 0:02:59.5]} 6. Bd3 {[%clk 0:02:43.9]} 6... Bxd3 {[%clk 0:02:47.7]} 7.
cxd3 {[%clk 0:02:44.8]} 7... c5 {[%clk 0:02:48.3]} 8. O-O {[%clk 0:02:43.3]}
8... Nc6 {[%clk 0:02:48.2]} 9. d4 {[%clk 0:02:43.6]} 9... cxd4 {[%clk
0:02:46.4]} 10. Nxd4 {[%clk 0:02:44.5]} 10... Bd6 {[%clk 0:02:45.6]} 11. Nxc6
{[%clk 0:02:43.8]} 11... bxc6 {[%clk 0:02:46.5]} 12. d4 {[%clk 0:02:44.1]} 12...
g5 {[%clk 0:02:39.9]} 13. Nc3 {[%clk 0:02:37.5]} 13... g4 {[%clk 0:02:36.9]} 14.
hxg4 {[%clk 0:02:10.9]} 14... h5 {[%clk 0:02:04.9]} 15. gxh5 {[%clk 0:02:08.2]}
15... Nxh5 {[%clk 0:01:56.7]} 16. Qg4 {[%clk 0:01:48.1]} 16... Nf6 {[%clk
0:01:56.2]} 17. Qf3 {[%clk 0:01:32.6]} 17... Bh2+ {[%clk 0:01:55.4]} 18. Kh1
{[%clk 0:01:33.2]} 18... Ne4 {[%clk 0:01:54.9]} 19. Nxe4 {[%clk 0:01:17.3]}
19... Bg3+ {[%clk 0:01:52.3]} 20. Kg1 {[%clk 0:01:15.1]} 20... Rh1+ {[%clk
0:01:53.2]} 0-1

[Event "*** SCC Grand Prix: Titled Tuesday Blitz"]
[Site "Chess.com"]
[Date "2020.08.11"]
[Round "3"]
[White "StephenDedalus83"]
[Black "Bodnar_Mykola"]
[Result "0-1"]
[WhiteElo "2799"]
[BlackElo "2514"]
[TimeControl "180+1"]
[EndTime "10:26:07 PDT"]
[Termination "Bodnar_Mykola won by resignation"]

1. e4 {[%clk 0:03:00.9]} 1... e5 {[%clk 0:02:59.8]} 2. Nf3 {[%clk 0:03:00.6]}
2... Nc6 {[%clk 0:03:00.4]} 3. Bb5 {[%clk 0:03:00.4]} 3... g6 {[%clk 0:03:00.9]}
4. c3 {[%clk 0:02:59.2]} 4... a6 {[%clk 0:03:00.5]} 5. Ba4 {[%clk 0:02:58.6]}
5... b5 {[%clk 0:03:00.9]} 6. Bc2 {[%clk 0:02:56.9]} 6... Bg7 {[%clk 0:03:01.5]}
7. d4 {[%clk 0:02:56.8]} 7... exd4 {[%clk 0:03:02.4]} 8. cxd4 {[%clk 0:02:56.8]}
8... d5 {[%clk 0:03:03]} 9. exd5 {[%clk 0:02:55.8]} 9... Nce7 {[%clk 0:03:03.2]}
10. a4 {[%clk 0:02:51.8]} 10... Bb7 {[%clk 0:03:02.4]} 11. O-O {[%clk
0:02:51.3]} 11... Nf6 {[%clk 0:03:01.9]} 12. Re1 {[%clk 0:02:47]} 12... O-O
{[%clk 0:03:01.2]} 13. Nc3 {[%clk 0:02:44.5]} 13... Nexd5 {[%clk 0:02:49.4]} 14.
Bg5 {[%clk 0:02:42.3]} 14... h6 {[%clk 0:02:45.3]} 15. Bh4 {[%clk 0:02:41.8]}
15... Nxc3 {[%clk 0:02:37.1]} 16. bxc3 {[%clk 0:02:41]} 16... Qc8 {[%clk
0:02:28.4]} 17. Ne5 {[%clk 0:02:30.2]} 17... Nd5 {[%clk 0:02:19.3]} 18. Qd2
{[%clk 0:02:21.2]} 18... c5 {[%clk 0:02:18.9]} 19. dxc5 {[%clk 0:02:20]} 19...
Qxc5 {[%clk 0:02:19.8]} 20. Nd7 {[%clk 0:02:19.2]} 20... Qxc3 {[%clk 0:02:18.1]}
21. Qxc3 {[%clk 0:02:12.1]} 21... Bxc3 {[%clk 0:02:17.7]} 22. Nxf8 {[%clk
0:02:12.7]} 22... Bxa1 {[%clk 0:02:11.7]} 23. Rxa1 {[%clk 0:02:11.6]} 23... Rxf8
{[%clk 0:02:10.8]} 24. axb5 {[%clk 0:02:11.5]} 24... axb5 {[%clk 0:02:10.7]} 25.
Rb1 {[%clk 0:02:10.1]} 25... Nc3 {[%clk 0:02:04.4]} 26. Rb2 {[%clk 0:02:06.3]}
26... Re8 {[%clk 0:02:01.2]} 27. f3 {[%clk 0:02:00.9]} 27... Re2 {[%clk
0:01:55.9]} 28. Bf6 {[%clk 0:02:00.7]} 28... Nd5 {[%clk 0:01:50.5]} 29. Bd4
{[%clk 0:01:57.6]} 29... Nf4 {[%clk 0:01:47.3]} 30. Bb3 {[%clk 0:01:50.2]} 30...
Re1+ {[%clk 0:01:45]} 31. Kf2 {[%clk 0:01:48.9]} 31... Nd3+ {[%clk 0:01:45.9]}
32. Kg3 {[%clk 0:01:48.8]} 32... Nxb2 {[%clk 0:01:46.6]} 0-1

[Event "*** SCC Grand Prix: Titled Tuesday Blitz"]
[Site "Chess.com"]
[Date "2020.08.11"]
[Round "3"]
[White "ahachess"]
[Black "pfalcon1949"]
[Result "1-0"]
[WhiteElo "2272"]
[BlackElo "1963"]
[TimeControl "180+1"]
[EndTime "10:26:09 PDT"]
[Termination "ahachess won by resignation"]

1. d4 {[%clk 0:03:00.7]} 1... Nf6 {[%clk 0:02:58.2]} 2. c4 {[%clk 0:03:00.8]}
2... e6 {[%clk 0:02:57.9]} 3. Nf3 {[%clk 0:03:00.9]} 3... b6 {[%clk 0:02:54.9]}
4. g3 {[%clk 0:03:01.2]} 4... Bb7 {[%clk 0:02:54.3]} 5. Bg2 {[%clk 0:03:01.8]}
5... c6 {[%clk 0:02:54.2]} 6. O-O {[%clk 0:03:01.8]} 6... d5 {[%clk 0:02:54.8]}
7. Nc3 {[%clk 0:03:00]} 7... Be7 {[%clk 0:02:55]} 8. Qc2 {[%clk 0:02:53.9]} 8...
Na6 {[%clk 0:02:49.4]} 9. a3 {[%clk 0:02:46.8]} 9... dxc4 {[%clk 0:02:46.4]} 10.
Rd1 {[%clk 0:02:37.5]} 10... O-O {[%clk 0:02:45.1]} 11. Ne5 {[%clk 0:02:37.4]}
11... Qc7 {[%clk 0:02:43.1]} 12. Nxc4 {[%clk 0:02:33.3]} 12... Rfd8 {[%clk
0:02:42.8]} 13. Bf4 {[%clk 0:02:32.8]} 13... Qd7 {[%clk 0:02:39.1]} 14. Ne5
{[%clk 0:02:28.5]} 14... Qc8 {[%clk 0:02:36.6]} 15. Ne4 {[%clk 0:02:12.5]} 15...
c5 {[%clk 0:02:27.2]} 16. Ng5 {[%clk 0:01:52.2]} 16... Bxg2 {[%clk 0:02:13.8]}
17. Kxg2 {[%clk 0:01:52.5]} 17... Qb7+ {[%clk 0:02:06.6]} 18. f3 {[%clk
0:01:48.8]} 18... Rf8 {[%clk 0:02:05.5]} 19. dxc5 {[%clk 0:01:39.1]} 19... bxc5
{[%clk 0:01:52.7]} 20. Rd7 {[%clk 0:01:35.1]} 1-0

[Event "*** SCC Grand Prix: Titled Tuesday Blitz"]
[Site "Chess.com"]
[Date "2020.08.11"]
[Round "3"]
[White "AGW2016"]
[Black "ChessAurochs"]
[Result "0-1"]
[WhiteElo "2319"]
[BlackElo "2551"]
[TimeControl "180+1"]
[EndTime "10:26:10 PDT"]
[Termination "ChessAurochs won by resignation"]

1. d4 {[%clk 0:02:58.9]} 1... Nf6 {[%clk 0:02:59.7]} 2. c4 {[%clk 0:02:55.1]}
2... e6 {[%clk 0:02:59.9]} 3. g3 {[%clk 0:02:53.9]} 3... c5 {[%clk 0:02:57.1]}
4. d5 {[%clk 0:02:53.8]} 4... exd5 {[%clk 0:02:58]} 5. cxd5 {[%clk 0:02:52.4]}
5... d6 {[%clk 0:02:58.5]} 6. Nf3 {[%clk 0:02:48.4]} 6... g6 {[%clk 0:02:58.1]}
7. Bg2 {[%clk 0:02:46.5]} 7... Bg7 {[%clk 0:02:58.2]} 8. Nc3 {[%clk 0:02:42.9]}
8... O-O {[%clk 0:02:58.4]} 9. O-O {[%clk 0:02:43.2]} 9... a6 {[%clk 0:02:58.9]}
10. a4 {[%clk 0:02:43.1]} 10... Nbd7 {[%clk 0:02:58.6]} 11. Bf4 {[%clk
0:02:42.7]} 11... Qe7 {[%clk 0:02:51.6]} 12. Nd2 {[%clk 0:02:40.8]} 12... Nh5
{[%clk 0:02:43.1]} 13. Be3 {[%clk 0:02:40.9]} 13... Ne5 {[%clk 0:02:36.8]} 14.
h3 {[%clk 0:02:36.2]} 14... f5 {[%clk 0:02:34.6]} 15. Nf3 {[%clk 0:01:37.2]}
15... Nxf3+ {[%clk 0:02:25.6]} 16. Bxf3 {[%clk 0:01:36.4]} 16... Nxg3 {[%clk
0:02:23.2]} 17. Re1 {[%clk 0:01:29.4]} 17... f4 {[%clk 0:02:19.4]} 18. Bxf4
{[%clk 0:01:27.8]} 18... Rxf4 {[%clk 0:01:37.4]} 19. fxg3 {[%clk 0:01:28.7]}
19... Rd4 {[%clk 0:01:36.8]} 20. Qc1 {[%clk 0:01:26.1]} 20... Bxh3 {[%clk
0:01:33.4]} 0-1

[Event "*** SCC Grand Prix: Titled Tuesday Blitz"]
[Site "Chess.com"]
[Date "2020.08.11"]
[Round "3"]
[White "Cambek64"]
[Black "Blagorod"]
[Result "0-1"]
[WhiteElo "2306"]
[BlackElo "2124"]
[TimeControl "180+1"]
[EndTime "10:26:13 PDT"]
[Termination "Blagorod won by resignation"]

1. e3 {[%clk 0:02:50.1]} 1... e5 {[%clk 0:02:59.5]} 2. d4 {[%clk 0:02:40]} 2...
exd4 {[%clk 0:02:57.4]} 3. exd4 {[%clk 0:02:40.3]} 3... d5 {[%clk 0:02:56.3]} 4.
Bd3 {[%clk 0:02:40.4]} 4... Nf6 {[%clk 0:02:53.2]} 5. c3 {[%clk 0:02:40.7]} 5...
Bd6 {[%clk 0:02:47.7]} 6. Qc2 {[%clk 0:02:40.5]} 6... O-O {[%clk 0:02:46.2]} 7.
Bg5 {[%clk 0:02:40.5]} 7... h6 {[%clk 0:02:44.7]} 8. h4 {[%clk 0:02:39.8]} 8...
Re8+ {[%clk 0:02:44.2]} 9. Ne2 {[%clk 0:02:39.4]} 9... hxg5 {[%clk 0:02:24.1]}
10. hxg5 {[%clk 0:02:39]} 10... Ne4 {[%clk 0:02:23.3]} 11. f4 {[%clk 0:02:36.1]}
11... Bxf4 {[%clk 0:02:03]} 12. Nxf4 {[%clk 0:02:26.7]} 12... Ng3+ {[%clk
0:02:01]} 13. Kf2 {[%clk 0:02:15.6]} 13... Nxh1+ {[%clk 0:02:00.8]} 14. Kg1
{[%clk 0:02:15]} 14... Qxg5 {[%clk 0:01:53.7]} 15. Nd2 {[%clk 0:02:07.7]} 15...
Qxf4 {[%clk 0:01:47.1]} 16. Rf1 {[%clk 0:02:02.9]} 16... Qh6 {[%clk 0:01:34.9]}
17. Bf5 {[%clk 0:01:45.2]} 17... Ng3 {[%clk 0:01:29.7]} 18. Bxc8 {[%clk
0:01:41.6]} 18... Nxf1 {[%clk 0:01:27.9]} 0-1

[Event "*** SCC Grand Prix: Titled Tuesday Blitz"]
[Site "Chess.com"]
[Date "2020.08.11"]
[Round "3"]
[White "varacalli"]
[Black "GelmanAlexander"]
[Result "0-1"]
[WhiteElo "2344"]
[BlackElo "2571"]
[TimeControl "180+1"]
[EndTime "10:26:31 PDT"]
[Termination "GelmanAlexander won by checkmate"]

1. e4 {[%clk 0:03:00.9]} 1... c5 {[%clk 0:02:59.6]} 2. Nf3 {[%clk 0:03:01]} 2...
e6 {[%clk 0:03:00.1]} 3. d4 {[%clk 0:03:01.4]} 3... cxd4 {[%clk 0:03:00.4]} 4.
Nxd4 {[%clk 0:03:02]} 4... a6 {[%clk 0:03:00.9]} 5. Bd3 {[%clk 0:03:01.3]} 5...
d6 {[%clk 0:03:01.3]} 6. Nc3 {[%clk 0:03:00.8]} 6... b5 {[%clk 0:03:00.6]} 7.
O-O {[%clk 0:03:00.6]} 7... Bb7 {[%clk 0:03:00.3]} 8. f4 {[%clk 0:03:00.5]} 8...
Nd7 {[%clk 0:03:00.5]} 9. Kh1 {[%clk 0:03:00.1]} 9... Ngf6 {[%clk 0:03:00.6]}
10. Qe2 {[%clk 0:02:58.8]} 10... Rc8 {[%clk 0:03:00.3]} 11. Bd2 {[%clk
0:02:58.8]} 11... h5 {[%clk 0:03:00]} 12. Rf3 {[%clk 0:02:54.6]} 12... Be7
{[%clk 0:02:45.8]} 13. Re1 {[%clk 0:02:53.3]} 13... b4 {[%clk 0:02:44]} 14. Nd1
{[%clk 0:02:52.9]} 14... Nc5 {[%clk 0:02:40.7]} 15. Nf2 {[%clk 0:02:52.1]} 15...
Qb6 {[%clk 0:02:36.3]} 16. Rh3 {[%clk 0:02:38.4]} 16... Nxd3 {[%clk 0:02:24.3]}
17. Qxd3 {[%clk 0:02:37.8]} 17... a5 {[%clk 0:02:18]} 18. Be3 {[%clk 0:02:35]}
18... Qc7 {[%clk 0:02:13.7]} 19. Nb5 {[%clk 0:02:30.4]} 19... Qxc2 {[%clk
0:02:00.2]} 20. Nxd6+ {[%clk 0:02:25.2]} 20... Bxd6 {[%clk 0:01:56.5]} 21. Qxd6
{[%clk 0:02:26.1]} 21... Nxe4 {[%clk 0:01:54.1]} 22. Nxe4 {[%clk 0:02:11.8]}
22... Bxe4 {[%clk 0:01:43.5]} 23. Rg1 {[%clk 0:01:54.7]} 23... Rd8 {[%clk
0:01:25.5]} 24. Qb6 {[%clk 0:01:50.3]} 24... O-O {[%clk 0:01:19.6]} 25. Qxa5
{[%clk 0:01:47.2]} 25... Rd1 {[%clk 0:01:11.5]} 26. Rxd1 {[%clk 0:01:41.8]}
26... Qxg2# {[%clk 0:01:10.5]} 0-1

[Event "*** SCC Grand Prix: Titled Tuesday Blitz"]
[Site "Chess.com"]
[Date "2020.08.11"]
[Round "3"]
[White "DishonorOnYourCow"]
[Black "BlackWidow515"]
[Result "1-0"]
[WhiteElo "2322"]
[BlackElo "2105"]
[TimeControl "180+1"]
[EndTime "10:26:32 PDT"]
[Termination "DishonorOnYourCow won by resignation"]

1. d4 {[%clk 0:01:57.2]} 1... d5 {[%clk 0:02:59.1]} 2. c4 {[%clk 0:01:57.3]}
2... e6 {[%clk 0:02:59.2]} 3. Nc3 {[%clk 0:01:56.8]} 3... Nf6 {[%clk 0:02:59.3]}
4. cxd5 {[%clk 0:01:57.3]} 4... exd5 {[%clk 0:02:59.5]} 5. Bg5 {[%clk
0:01:57.8]} 5... h6 {[%clk 0:02:54.4]} 6. Bh4 {[%clk 0:01:57.4]} 6... Be7 {[%clk
0:02:52.2]} 7. e3 {[%clk 0:01:56.5]} 7... O-O {[%clk 0:02:52.8]} 8. Bd3 {[%clk
0:01:57]} 8... Nbd7 {[%clk 0:02:53.3]} 9. Nge2 {[%clk 0:01:57.2]} 9... b6 {[%clk
0:02:53.9]} 10. Qc2 {[%clk 0:01:57.8]} 10... Bb7 {[%clk 0:02:54.5]} 11. O-O
{[%clk 0:01:58.4]} 11... c5 {[%clk 0:02:54.8]} 12. Rad1 {[%clk 0:01:58.1]} 12...
Rc8 {[%clk 0:02:54.5]} 13. Bf5 {[%clk 0:01:58]} 13... c4 {[%clk 0:02:42.1]} 14.
f3 {[%clk 0:01:57.2]} 14... a6 {[%clk 0:02:33.2]} 15. e4 {[%clk 0:01:56.8]}
15... b5 {[%clk 0:02:22.4]} 16. e5 {[%clk 0:01:54.8]} 16... Ne8 {[%clk
0:02:20.4]} 17. e6 {[%clk 0:01:50]} 17... fxe6 {[%clk 0:01:55.8]} 18. Bxe6+
{[%clk 0:01:50.9]} 18... Kh8 {[%clk 0:01:55.9]} 19. Bg3 {[%clk 0:01:33.8]} 19...
Nef6 {[%clk 0:01:50.6]} 20. Nf4 {[%clk 0:01:32.4]} 20... Rc6 {[%clk 0:01:23.4]}
21. Ng6+ {[%clk 0:01:30.4]} 1-0

[Event "*** SCC Grand Prix: Titled Tuesday Blitz"]
[Site "Chess.com"]
[Date "2020.08.11"]
[Round "3"]
[White "seorobert1971"]
[Black "tk22h"]
[Result "1-0"]
[WhiteElo "2734"]
[BlackElo "2386"]
[TimeControl "180+1"]
[EndTime "10:26:34 PDT"]
[Termination "seorobert1971 won by resignation"]

1. c4 {[%clk 0:03:00.9]} 1... e5 {[%clk 0:02:59]} 2. Nc3 {[%clk 0:03:01.1]} 2...
Nc6 {[%clk 0:02:59.5]} 3. Nf3 {[%clk 0:03:01.4]} 3... f5 {[%clk 0:02:58.5]} 4.
d3 {[%clk 0:02:57.6]} 4... Nf6 {[%clk 0:02:57.9]} 5. g3 {[%clk 0:02:57.5]} 5...
g6 {[%clk 0:02:57.7]} 6. Bg2 {[%clk 0:02:57.6]} 6... Bg7 {[%clk 0:02:57.8]} 7.
O-O {[%clk 0:02:57.9]} 7... O-O {[%clk 0:02:58.3]} 8. Rb1 {[%clk 0:02:58]} 8...
a5 {[%clk 0:02:56.7]} 9. a3 {[%clk 0:02:57.7]} 9... d6 {[%clk 0:02:56.8]} 10. b4
{[%clk 0:02:57.6]} 10... axb4 {[%clk 0:02:57.7]} 11. axb4 {[%clk 0:02:58.3]}
11... h6 {[%clk 0:02:57.5]} 12. Nd2 {[%clk 0:02:54.5]} 12... Be6 {[%clk
0:02:56.9]} 13. Nd5 {[%clk 0:02:52.9]} 13... Qd7 {[%clk 0:02:56.4]} 14. b5
{[%clk 0:02:49.6]} 14... Nd8 {[%clk 0:02:56]} 15. b6 {[%clk 0:02:47.8]} 15...
Bxd5 {[%clk 0:02:50.8]} 16. cxd5 {[%clk 0:02:47.3]} 16... c5 {[%clk 0:02:50.6]}
17. dxc6 {[%clk 0:02:44.1]} 17... Nxc6 {[%clk 0:02:50.7]} 18. Qb3+ {[%clk
0:02:40.1]} 18... Qf7 {[%clk 0:02:45.9]} 19. Qxf7+ {[%clk 0:02:34.3]} 19... Kxf7
{[%clk 0:02:45]} 20. Nc4 {[%clk 0:02:31.6]} 20... Ke7 {[%clk 0:02:43.8]} 21. Ba3
{[%clk 0:01:48.7]} 21... Rfd8 {[%clk 0:02:37.8]} 22. Bxc6 {[%clk 0:01:47.4]}
22... bxc6 {[%clk 0:02:37.1]} 23. b7 {[%clk 0:01:47.5]} 23... Rab8 {[%clk
0:02:21.2]} 24. Na5 {[%clk 0:01:46.6]} 24... Kd7 {[%clk 0:02:14.4]} 25. Rb6
{[%clk 0:01:44.7]} 25... c5 {[%clk 0:01:55.6]} 26. Nc6 {[%clk 0:01:40.2]} 26...
Kc7 {[%clk 0:01:54.7]} 27. Rfb1 {[%clk 0:01:25.3]} 27... Nd5 {[%clk 0:01:52.5]}
28. Nxd8 {[%clk 0:01:09.9]} 28... Kxd8 {[%clk 0:01:52.5]} 29. Rxd6+ {[%clk
0:01:09]} 1-0

[Event "*** SCC Grand Prix: Titled Tuesday Blitz"]
[Site "Chess.com"]
[Date "2020.08.11"]
[Round "3"]
[White "Ermito2020"]
[Black "1f3_2g41-0"]
[Result "1-0"]
[WhiteElo "2657"]
[BlackElo "2415"]
[TimeControl "180+1"]
[EndTime "10:26:35 PDT"]
[Termination "Ermito2020 won by resignation"]

1. e4 {[%clk 0:03:00.9]} 1... c5 {[%clk 0:03:00.2]} 2. Nf3 {[%clk 0:03:00.5]}
2... d6 {[%clk 0:03:00.4]} 3. d4 {[%clk 0:02:59.9]} 3... cxd4 {[%clk 0:03:01.3]}
4. Nxd4 {[%clk 0:03:00.4]} 4... Nf6 {[%clk 0:03:01.8]} 5. Nc3 {[%clk 0:03:01.1]}
5... a6 {[%clk 0:03:02.3]} 6. Bg5 {[%clk 0:03:01.6]} 6... e6 {[%clk 0:03:02.5]}
7. f4 {[%clk 0:03:01.6]} 7... Be7 {[%clk 0:03:03]} 8. Qf3 {[%clk 0:03:01.7]}
8... O-O {[%clk 0:03:03.4]} 9. O-O-O {[%clk 0:02:57.8]} 9... Nbd7 {[%clk
0:03:03.8]} 10. Qg3 {[%clk 0:02:57.3]} 10... b5 {[%clk 0:03:01.4]} 11. Nc6
{[%clk 0:02:53.7]} 11... Qe8 {[%clk 0:02:38.7]} 12. Nxe7+ {[%clk 0:02:43.4]}
12... Qxe7 {[%clk 0:02:38.7]} 13. e5 {[%clk 0:02:44]} 13... dxe5 {[%clk
0:02:38.7]} 14. fxe5 {[%clk 0:02:43.5]} 14... b4 {[%clk 0:02:37.9]} 15. exf6
{[%clk 0:02:38.9]} 15... Nxf6 {[%clk 0:02:37.2]} 16. Ne4 {[%clk 0:02:30]} 16...
Nxe4 {[%clk 0:02:31.3]} 17. Bxe7 {[%clk 0:02:29.8]} 17... Nxg3 {[%clk
0:02:31.8]} 18. hxg3 {[%clk 0:02:30.4]} 18... Re8 {[%clk 0:02:32.2]} 19. Bxb4
{[%clk 0:02:28.7]} 19... Bb7 {[%clk 0:02:31.9]} 20. Rd7 {[%clk 0:02:21.9]} 20...
Bc6 {[%clk 0:02:30.4]} 21. Rc7 {[%clk 0:02:21.1]} 21... Bd5 {[%clk 0:02:29.2]}
22. Bd3 {[%clk 0:02:18.5]} 22... g6 {[%clk 0:02:28.9]} 23. Rf1 {[%clk
0:02:17.3]} 23... e5 {[%clk 0:02:25.4]} 24. c4 {[%clk 0:02:14.9]} 24... Be6
{[%clk 0:02:24]} 25. Be4 {[%clk 0:02:14.5]} 25... Rac8 {[%clk 0:02:23.5]} 26.
Rxc8 {[%clk 0:02:12.3]} 26... Rxc8 {[%clk 0:02:24.4]} 27. b3 {[%clk 0:02:13]}
27... f5 {[%clk 0:02:22.6]} 28. Bc2 {[%clk 0:02:12.5]} 28... h5 {[%clk
0:02:18.3]} 29. Rd1 {[%clk 0:02:09.8]} 29... Kf7 {[%clk 0:02:14.1]} 30. Bc3
{[%clk 0:02:08.6]} 30... e4 {[%clk 0:02:09.8]} 31. Kd2 {[%clk 0:02:07.5]} 31...
g5 {[%clk 0:02:08.8]} 32. Ke3 {[%clk 0:02:06.1]} 32... h4 {[%clk 0:02:06]} 33.
gxh4 {[%clk 0:02:05.6]} 33... f4+ {[%clk 0:02:05.9]} 34. Kxe4 {[%clk 0:02:04.5]}
34... Rc5 {[%clk 0:02:03.4]} 35. Kd4 {[%clk 0:01:44.4]} 35... Rc8 {[%clk
0:01:59.5]} 36. hxg5 {[%clk 0:01:43.2]} 36... Rg8 {[%clk 0:01:52.3]} 37. Be4
{[%clk 0:01:42]} 37... Rxg5 {[%clk 0:01:51.9]} 38. Rf1 {[%clk 0:01:40]} 38...
Rg4 {[%clk 0:01:50.7]} 39. Ke5 {[%clk 0:01:37.3]} 39... Ke7 {[%clk 0:01:49.1]}
40. Rxf4 {[%clk 0:01:34.2]} 40... Rg5+ {[%clk 0:01:48.7]} 41. Kd4 {[%clk
0:01:34.2]} 41... Rg3 {[%clk 0:01:45.9]} 42. Bf3 {[%clk 0:01:32.9]} 1-0